bitfinex-derivatives/quotes_ETHF0:USTF0_20250624
["timestamp","ask_amount","ask_price","bid_price","bid_amount"]
[1750745131196,26.99438,2415.7,2415.6,0.10633231]
[1750745131395,26.167,2415.7,2415.6,0.10633231]
[1750745131797,26.167,2415.7,2415.6,0.93374231]
[1750745132201,0.6882,2415.9,2415.6,0.93374231]
[1750745132516,33.23,2415.8,2415.6,0.10633231]
[1750745132807,0.82738,2415.7,2415.6,0.10633231]
[1750745133004,2.14878,2415.7,2415.6,0.10633231]
[1750745134710,2.82918,2415.7,2415.6,0.10633231]
[1750745135311,0.82755,2415.2,2415.1,3.2078]
[1750745135608,33.242,2415.2,2414.7,3.2078]
[1750745135813,0.82768,2414.8,2414.7,3.2078]
[1750745136007,34.06668,2414.8,2414.7,3.2078]
[1750745136411,33.239,2414.8,2414.7,3.2078]
[1750745136714,26.168,2414.9,2414.8,0.82766]
[1750745137310,26.168,2414.9,2414.4,4.6208]
[1750745137510,1.4343,2414.9,2414.4,4.6208]
[1750745137706,1.50801,2415.1,2414.4,4.6208]
[1750745138012,33.254,2415.0,2414.9,0.82765]
[1750745138609,0.6804,2415.1,2414.9,0.82765]
[1750745138813,3.9252,2415.6,2414.7,3.2078]
[1750745139115,0.8276,2415.1,2414.7,4.0355]
[1750745139418,0.82762,2415.0,2414.7,4.0355]
[1750745139620,0.82765,2414.9,2414.7,3.2078]
[1750745140419,0.82765,2414.9,2414.7,4.03552]
[1750745140620,0.82765,2414.9,2414.7,3.2078]
[1750745140917,0.82765,2414.9,2414.7,4.03552]
[1750745141111,4.5169,2415.2,2414.7,3.2078]
[1750745141315,1.3091,2415.2,2414.7,4.03551]
[1750745141523,0.82764,2415.0,2414.7,4.03551]
[1750745141723,0.82764,2415.0,2414.8,0.82767]
[1750745142024,0.82764,2415.0,2414.7,4.0355]
[1750745142225,0.82766,2414.9,2414.7,3.2078]
[1750745142630,0.82763,2415.0,2414.7,4.03551]
[1750745142828,0.82768,2414.8,2414.7,3.2078]
[1750745144430,2.25788,2414.8,2414.7,3.2078]
[1750745144821,1.54418,2414.8,2414.7,3.2078]
[1750745145318,0.82776,2414.6,2414.4,4.03559]
[1750745145516,2.1467,2414.8,2414.4,3.2078]
[1750745145716,0.82786,2414.3,2414.2,0.7124]
[1750745146527,0.82791,2414.2,2414.0,0.72]
[1750745146729,0.82787,2414.3,2414.1,4.03571]
[1750745146934,0.82785,2414.4,2414.2,0.82789]
[1750745147133,0.82786,2414.3,2414.1,4.0357]
[1750745147636,0.82784,2414.4,2414.2,0.82789]
[1750745147833,7.074,2414.5,2414.3,0.82782]
[1750745148128,7.90175,2414.6,2414.3,0.82783]
[1750745148329,0.82785,2414.4,2414.1,4.03571]
[1750745148532,0.82787,2414.3,2414.1,3.2078]
[1750745148734,0.82784,2414.4,2414.1,4.03572]
[1750745149442,0.82808,2413.7,2413.3,0.82818]
[1750745149735,0.82808,2413.7,2413.4,0.69]
[1750745149934,0.82808,2413.7,2413.4,2.0843]
[1750745150127,0.8281,2413.6,2413.4,2.0843]
[1750745150537,0.82812,2413.6,2413.4,2.0843]
[1750745150838,0.82797,2414.0,2413.7,0.82805]
[1750745151035,0.82797,2414.0,2413.7,4.03585]
[1750745151235,0.82803,2413.8,2413.7,3.2078]
[1750745151436,0.8281,2413.6,2413.4,0.69]
[1750745151636,0.82808,2413.7,2413.4,2.87345]
[1750745151829,0.82806,2413.8,2413.4,2.87345]
[1750745152032,0.82808,2413.7,2413.4,2.0453]
[1750745152332,5.42681445,2413.9,2413.4,0.69]
[1750745152537,0.82811,2413.6,2413.4,0.69]
[1750745153743,0.82808,2413.7,2413.4,1.51816]
[1750745154038,0.8281,2413.6,2413.4,0.69]
[1750745154246,0.82808,2413.7,2413.4,0.69]
[1750745154436,0.82805,2413.8,2413.4,0.69]
[1750745154742,3.2078,2414.5,2413.6,2.07025]
[1750745155035,0.82791,2414.2,2413.9,3.2078]
[1750745155240,0.82791,2414.2,2413.9,4.03579]
[1750745155441,0.82791,2414.2,2413.9,3.2078]
[1750745155634,0.82793,2414.1,2413.9,3.2078]
[1750745156038,0.82796,2414.0,2413.9,3.2078]
[1750745156228,0.82795,2414.1,2413.7,0.6653]
[1750745156436,0.82795,2414.1,2413.8,2.22772]
[1750745156637,0.82796,2414.0,2413.7,1.49334]
[1750745156950,0.82794,2414.1,2413.8,0.82802]
[1750745157145,0.82794,2414.1,2413.8,2.22772]
[1750745157335,6.25472445,2414.2,2413.9,0.82799]
[1750745157640,9.1499,2414.4,2413.8,1.3997]
[1750745157843,9.1499,2414.4,2413.9,0.82799]
[1750745158045,0.8279,2414.2,2413.9,0.82799]
[1750745158349,0.82793,2414.1,2413.8,2.2277]
[1750745158846,0.82791,2414.2,2413.8,1.3997]
[1750745159047,0.82791,2414.2,2413.9,0.82798]
[1750745159547,0.82792,2414.1,2413.8,2.22772]
[1750745160047,0.82791,2414.2,2413.9,0.82799]
[1750745160350,0.82791,2414.2,2414.0,0.82796]
[1750745160540,0.82791,2414.2,2413.9,0.82798]
[1750745160843,0.82794,2414.1,2413.9,0.82799]
[1750745161039,0.82794,2414.1,2413.8,0.828]
[1750745161344,0.82794,2414.1,2413.8,1.3607]
[1750745161545,0.82794,2414.1,2413.8,2.1887]
[1750745161746,7.126,2414.3,2413.9,0.82798]
[1750745161952,0.82788,2414.3,2414.0,0.82794]
[1750745162139,0.82788,2414.3,2414.1,0.6713]
[1750745162338,0.82785,2414.4,2414.1,1.49922]
[1750745162642,7.83193855,2414.5,2414.1,0.6713]
[1750745162846,5.45202855,2414.2,2414.1,0.6713]
[1750745163045,4.62413855,2414.2,2413.8,3.2078]
[1750745163248,0.82803,2413.8,2413.6,2.18878]
[1750745163550,0.82806,2413.7,2413.6,1.3607]
[1750745163750,5.45214855,2413.9,2413.7,0.82806]
[1750745163948,4.62413855,2413.9,2413.7,0.82806]
[1750745164148,5.45212855,2413.9,2413.7,0.82806]
[1750745164448,0.82798,2414.0,2413.8,0.82803]
[1750745164749,0.82801,2413.9,2413.7,0.82805]
[1750745165044,0.82801,2413.9,2413.6,1.3607]
[1750745165045,0.82799,2413.9,2413.6,1.3607]
[1750745165237,7.126,2414.3,2413.6,1.3607]
[1750745165441,0.82801,2413.9,2413.6,1.3607]
[1750745165948,0.82801,2413.9,2413.8,28.30979631]
[1750745166143,0.82801,2413.9,2413.6,2.18878]
[1750745166456,5.45210855,2414.0,2413.8,0.82803]
[1750745167043,4.62413855,2414.0,2413.9,0.82799]
[1750745167344,4.62413855,2414.0,2413.8,0.82801]
[1750745167545,5.45209855,2414.0,2413.8,0.82801]
[1750745167944,4.62413855,2414.0,2413.8,0.82801]
[1750745168140,5.45209855,2414.0,2413.8,4.03581]
[1750745168456,4.62413855,2414.0,2413.9,0.82799]
[1750745169246,4.62413855,2414.2,2413.8,3.2078]
[1750745169445,1.0015221,2414.1,2413.9,2.91206]
[1750745169637,5.45204855,2414.2,2413.9,2.91206]
[1750745169836,1.82949596,2414.1,2413.9,2.91206]
[1750745170055,0.82796,2414.0,2413.9,0.6825]
[1750745170250,0.82794,2414.1,2413.9,1.51049]
[1750745170548,0.82803,2413.8,2413.6,2.17909]
[1750745170752,0.82803,2413.8,2413.5,4.71481]
[1750745170942,4.62413855,2413.9,2413.5,4.71481]
[1750745170943,0.82807,2413.7,2413.5,4.71481]
[1750745171451,0.82807,2413.7,2413.5,3.8867]
[1750745171744,0.8281,2413.6,2413.5,3.8867]
[1750745172748,0.82808,2413.7,2413.5,4.71483]
[1750745172944,0.82808,2413.7,2413.5,3.8867]
[1750745173144,0.82808,2413.7,2413.5,4.71482]
[1750745173348,2.14504,2413.8,2413.6,0.8281]
[1750745173557,1.00341555,2413.7,2413.6,0.8281]
[1750745173747,1.00341555,2413.7,2413.6,2.1645]
[1750745175751,1.83147555,2413.7,2413.5,4.71481]
[1750745175953,1.00341555,2413.6,2413.5,4.71481]
[1750745176146,1.83151555,2413.6,2413.5,3.8867]
[1750745176641,1.00341555,2413.6,2413.5,4.71483]
[1750745177052,0.82806,2413.7,2413.6,0.8281]
[1750745177241,1.00458571,2413.7,2413.6,0.82808]
[1750745178045,0.8281,2413.6,2413.5,3.8867]
[1750745178245,1.83268571,2413.6,2413.5,3.8867]
[1750745179062,1.83268571,2413.6,2413.5,4.03593]
[1750745179063,1.00458571,2413.6,2413.5,4.03593]
[1750745179354,1.83268571,2413.6,2413.5,3.2078]
[1750745179553,0.82819,2413.4,2413.2,3.2078]
[1750745179751,5.45229855,2413.4,2413.2,4.03602]
[1750745179950,5.45229855,2413.4,2413.2,3.2078]
[1750745180149,5.45229855,2413.4,2413.2,4.03603]
[1750745180654,4.62413855,2413.4,2413.2,4.03603]
[1750745180955,5.45229855,2413.4,2413.2,4.03601]
[1750745181157,0.8282,2413.3,2413.2,3.2078]
[1750745181358,0.82819,2413.4,2413.2,4.03602]
[1750745181659,6.04263855,2413.5,2413.2,3.2078]
[1750745181660,0.8282,2413.3,2413.2,3.2078]
[1750745182250,6.04263855,2413.5,2413.2,4.03602]
[1750745182562,1.83312454,2413.4,2413.2,4.03601]
[1750745182753,1.00496454,2413.3,2413.2,4.03601]
[1750745182953,1.00488539,2413.3,2413.2,4.03601]
[1750745183267,1.83308539,2413.3,2413.2,3.2078]
[1750745184958,0.82823,2413.2,2412.9,3.2078]
[1750745185150,1.00529835,2413.1,2412.6,3.2078]
[1750745185356,1.00529835,2413.0,2412.9,0.82834]
[1750745185660,0.82825,2413.2,2413.0,0.8283]
[1750745185959,3.8714,2413.5,2413.0,0.8283]
[1750745186163,1.00482399,2413.4,2413.1,1.397]
[1750745186362,1.00482399,2413.3,2413.2,0.82821]
[1750745186760,1.00482399,2413.3,2413.1,1.397]
[1750745186957,11.82755,2413.5,2413.3,0.8282]
[1750745187264,1.00465078,2413.4,2413.3,0.8282]
[1750745187662,3.2078,2413.8,2413.1,4.6048]
[1750745187962,1.83262986,2413.7,2413.4,3.2078]
[1750745188161,1.83267986,2413.6,2413.3,0.82819]
[1750745188363,0.82812,2413.6,2413.3,0.82819]
[1750745188662,1.83275033,2413.5,2413.3,0.82819]
[1750745188964,5.45225855,2413.6,2413.3,0.82819]
[1750745189166,1.83276239,2413.5,2413.3,0.82819]
[1750745189364,0.82816,2413.4,2413.1,1.397]
[1750745189766,5.28593855,2413.6,2413.3,0.8282]
[1750745190069,1.83308513,2413.5,2413.3,0.8282]
[1750745190258,1.00495513,2413.4,2413.3,0.8282]
[1750745190455,1.00495513,2413.4,2413.2,0.82821]
[1750745190652,0.82817,2413.4,2413.1,2.22525]
[1750745191056,0.82817,2413.4,2413.2,0.82823]
[1750745191455,0.82817,2413.4,2413.1,1.397]
[1750745191658,2.24725,2413.5,2413.2,0.82822]
[1750745191859,1.00505549,2413.4,2413.3,0.8282]
[1750745192169,1.83323549,2413.4,2413.0,3.2078]
[1750745192369,2.28038,2413.4,2413.1,0.82825]
[1750745192667,1.4522,2413.4,2413.2,0.82822]
[1750745192870,0.82815,2413.5,2413.3,0.8282]
[1750745193165,5.28593855,2413.6,2413.0,3.2078]
[1750745193166,1.83341501,2413.4,2413.0,3.2078]
[1750745193363,2.95497,2413.4,2413.2,0.82822]
[1750745193668,2.95497,2413.4,2412.9,1.3617]
[1750745193669,5.62923737,2413.3,2412.9,1.3617]
[1750745193856,1.83337932,2413.2,2412.9,2.19002]
[1750745194058,1.83345826,2413.1,2412.9,2.19002]
[1750745194264,0.82827,2413.1,2412.9,2.19002]
[1750745194461,1.45,2413.2,2412.9,1.3617]
[1750745194668,4.62413855,2413.0,2412.4,3.2078]
[1750745194965,0.82846,2412.6,2412.4,4.03631]
[1750745195172,10.2518,2412.5,2411.9,3.2078]
[1750745195363,3.2078,2412.0,2411.9,0.82868]
[1750745195668,3.2078,2412.3,2412.1,0.82861]
[1750745195879,3.2078,2412.3,2412.0,0.82863]
[1750745196170,3.2078,2412.3,2411.8,1.3532]
[1750745196368,3.2078,2412.3,2412.2,0.82858]
[1750745196561,3.2078,2412.4,2412.3,0.82854]
[1750745196762,3.2078,2412.6,2412.5,0.82844]
[1750745198167,3.2078,2412.9,2412.4,0.7185]
[1750745198476,0.6908,2413.1,2412.4,0.7185]
[1750745198477,3.2078,2413.2,2413.0,0.82828]
[1750745198970,3.2078,2413.2,2413.1,0.82827]
[1750745199675,3.2078,2413.2,2413.1,5.82827]
[1750745199874,3.2078,2413.2,2413.1,7.21097]
[1750745200270,0.1804,2413.5,2413.4,0.82816]
[1750745200580,0.1804,2413.5,2413.4,4.03596]
[1750745200873,0.1804,2413.5,2413.4,0.82816]
[1750745201075,0.1804,2413.5,2413.4,2.23006]
[1750745201477,3.2078,2414.0,2413.9,0.82799]
[1750745201773,4.21163449,2414.0,2413.9,0.82799]
[1750745201977,3.2078,2414.0,2413.9,0.82799]
[1750745202475,2.1041,2414.6,2413.9,3.2078]
[1750745202664,3.2078,2414.7,2414.0,4.19079]
[1750745202864,1.00318744,2414.6,2414.5,0.82779]
[1750745203075,3.2078,2414.7,2414.6,0.82775]
[1750745203264,3.2078,2415.0,2414.9,0.82765]
[1750745203472,4.21082037,2415.0,2414.6,0.6736]
[1750745203671,3.2078,2415.0,2414.8,0.82766]
[1750745203871,2.8007,2415.1,2414.6,3.2078]
[1750745204077,2.8007,2415.1,2414.7,0.8277]
[1750745204267,4.62413855,2415.0,2414.7,0.8277]
[1750745204465,5.95533855,2415.0,2414.7,0.8277]
[1750745204667,5.95533855,2415.0,2414.5,0.7013]
[1750745204869,5.95533855,2415.0,2414.8,0.82768]
[1750745205170,5.95533855,2415.0,2414.7,0.8277]
[1750745205370,5.95533855,2415.0,2414.5,0.82776]
[1750745205571,4.62413855,2414.7,2414.4,7.044]
[1750745205771,1.3312,2414.6,2414.1,0.7013]
[1750745205970,1.3312,2414.6,2414.2,0.82788]
[1750745206468,1.3312,2414.6,2414.1,9.1804]
[1750745206665,1.3312,2414.6,2414.2,0.82789]
[1750745207180,2.0428,2414.6,2414.2,0.82789]
[1750745207482,0.82781,2414.5,2414.1,7.7443]
[1750745207679,10.00975855,2414.4,2414.0,7.7166]
[1750745207889,7.83193855,2414.1,2413.5,7.7221]
[1750745208182,7.83193855,2414.1,2413.4,0.82814]
[1750745208183,4.62413855,2413.8,2413.4,0.82814]
[1750745208380,4.62413855,2413.8,2413.5,0.82813]
[1750745208574,3.2078,2414.4,2413.3,4.5615]
[1750745208776,0.99784352,2414.3,2413.9,0.82798]
[1750745209079,0.99784352,2414.3,2413.9,0.82797]
[1750745209080,1.35,2414.3,2413.9,0.82797]
[1750745209281,1.35,2414.3,2414.0,0.82793]
[1750745209779,1.35,2414.3,2413.8,0.6954]
[1750745210080,1.35,2414.3,2413.8,2.1284]
[1750745210281,1.35,2414.3,2413.9,0.82798]
[1750745210475,3.2078,2414.4,2413.8,2.1284]
[1750745210781,0.7116,2414.6,2414.3,0.82786]
[1750745210983,0.7116,2414.6,2414.4,0.82782]
[1750745211286,3.2078,2414.7,2414.4,0.8278]
[1750745211778,3.2078,2414.7,2414.0,1.433]
[1750745211981,3.2078,2414.7,2414.6,0.82775]
[1750745212174,0.6708,2414.9,2414.7,0.82771]
[1750745212375,2.042,2415.0,2414.7,0.82771]
[1750745212876,2.042,2415.0,2414.4,7.042]
[1750745212877,4.62413855,2414.9,2414.4,10.2498]
[1750745213081,5.95793855,2414.9,2414.6,0.82772]
[1750745213281,5.95793855,2414.9,2414.7,0.82772]
[1750745213481,3.2078,2415.1,2414.4,11.6468]
[1750745214182,4.5416,2415.1,2414.4,11.6468]
[1750745214485,3.2078,2415.1,2414.4,13.71635]
[1750745214682,9.20713855,2415.4,2415.0,0.82762]
[1750745214892,3.2078,2415.1,2414.8,7.042]
[1750745215178,3.2078,2415.1,2414.9,0.82762]
[1750745215385,3.2078,2415.1,2414.8,0.82767]
[1750745215585,3.2078,2415.1,2414.9,0.82765]
[1750745216676,7.83193855,2415.1,2414.9,0.82765]
[1750745217980,3.2078,2415.1,2415.0,0.82762]
[1750745218587,3.2078,2415.1,2414.8,1.336]
[1750745218588,4.2428,2415.4,2415.3,0.82751]
[1750745219376,4.2428,2415.4,2415.2,0.82753]
[1750745219580,4.2428,2415.4,2415.1,7.254]
[1750745219581,4.2428,2415.4,2415.3,0.82751]
[1750745220682,1.035,2415.4,2415.3,0.82751]
[1750745220889,1.035,2415.4,2415.3,2.25111]
[1750745221377,3.2078,2416.2,2416.1,0.82724]
[1750745221587,3.2078,2416.3,2416.1,0.82723]
[1750745221985,3.2078,2416.3,2416.2,0.82721]
[1750745222488,4.62413855,2416.6,2415.9,2.0177]
[1750745222687,4.62413855,2416.6,2416.4,0.82711]
[1750745223086,4.62413855,2416.6,2415.9,2.0177]
[1750745223285,5.93193855,2416.6,2416.2,0.82717]
[1750745223487,5.93193855,2416.6,2416.3,0.82717]
[1750745223688,5.93193855,2416.6,2416.2,8.08018]
[1750745224589,5.93193855,2416.6,2416.2,7.253]
[1750745224789,5.93193855,2416.6,2416.3,0.82717]
[1750745224989,4.62413855,2416.6,2416.4,0.82714]
[1750745225386,4.62413855,2416.6,2416.2,7.253]
[1750745225788,4.62413855,2416.6,2416.3,0.82716]
[1750745225987,4.62413855,2416.6,2416.4,0.82713]
[1750745226389,3.2078,2416.7,2416.2,7.253]
[1750745226591,3.2078,2416.7,2416.4,0.82712]
[1750745226894,3.2078,2416.7,2416.3,8.07814]
[1750745227088,3.2078,2416.7,2416.0,5.3129]
[1750745227288,3.2078,2416.7,2416.6,0.82707]
[1750745227486,0.6804,2417.3,2416.9,0.82696]
[1750745227788,0.6804,2417.3,2416.5,7.251]
[1750745227789,0.6804,2417.3,2417.0,0.82691]
[1750745227988,0.6804,2417.3,2417.1,0.82689]
[1750745228194,1.50723,2417.3,2416.9,7.251]
[1750745228383,1.9976,2417.3,2416.9,7.251]
[1750745228586,1.9976,2417.3,2417.0,0.82692]
[1750745228794,1.9976,2417.3,2417.1,0.82689]
[1750745228995,1.9976,2417.3,2416.9,7.251]
[1750745229294,2.82444,2417.3,2416.9,8.07796]
[1750745229482,1.9976,2417.3,2417.0,0.82693]
[1750745230189,1.9976,2417.3,2416.9,8.07695]
[1750745230390,2.82443,2417.3,2416.9,8.07695]
[1750745230897,2.82443,2417.3,2416.9,7.25]
[1750745231086,2.82443,2417.3,2416.8,4.03478]
[1750745231288,0.82687,2417.2,2416.9,7.25]
[1750745231595,2.27867,2417.2,2416.9,7.25]
[1750745231797,1.4518,2417.2,2416.9,7.25]
[1750745231994,1.4518,2417.2,2416.9,8.07696]
[1750745232194,2.27868,2417.2,2416.9,7.25]
[1750745232586,1.4518,2417.2,2416.9,8.07696]
[1750745233190,1.4518,2417.2,2417.0,0.82693]
[1750745233499,1.4518,2417.2,2416.8,3.2078]
[1750745233500,6.4518,2417.2,2416.8,3.2078]
[1750745233802,6.4518,2417.2,2416.5,3.2078]
[1750745233803,0.82705,2416.7,2416.5,3.2078]
[1750745233996,4.62413855,2416.6,2416.5,3.2078]
[1750745234192,7.83193855,2416.6,2416.2,3.2078]
[1750745234400,4.62413855,2416.6,2416.2,3.2078]
[1750745234696,2.24032,2416.5,2416.2,3.2078]
[1750745235195,1.4132,2416.5,2416.2,3.2078]
[1750745235496,1.4132,2416.5,2416.2,4.03499]
[1750745235889,4.62413855,2416.6,2416.3,0.82715]
[1750745236292,6.03733855,2416.6,2416.2,4.03499]
[1750745236498,6.03733855,2416.6,2416.3,0.82717]
[1750745237991,4.62413855,2416.6,2416.2,3.2078]
[1750745238298,1.63205,2416.7,2416.3,0.82717]
[1750745238498,1.3559,2416.6,2416.3,0.82717]
[1750745239098,1.3559,2416.6,2416.4,0.82714]
[1750745239397,4.62413855,2416.5,2416.3,0.82715]
[1750745239595,1.3559,2416.4,2416.2,3.2078]
[1750745239799,0.82722,2416.2,2415.9,3.2078]
[1750745240002,4.62413855,2416.0,2415.8,0.82733]
[1750745240296,6.66143855,2416.1,2415.9,0.8273]
[1750745240503,6.66143855,2416.1,2415.6,15.83368801]
[1750745240504,6.66143855,2416.1,2415.8,0.82732]
[1750745240896,6.66143855,2416.1,2415.9,0.8273]
[1750745241098,7.83193855,2416.3,2415.6,15.83368801]
[1750745241294,4.62413855,2416.0,2415.7,0.82738]
[1750745241493,1.3404,2415.9,2415.7,0.82736]
[1750745241799,1.3404,2415.9,2415.6,3.2078]
[1750745242005,1.3404,2415.9,2415.7,0.82736]
[1750745242301,1.3404,2415.9,2415.6,4.03519]
[1750745242803,4.62413855,2415.7,2415.6,3.2078]
[1750745243598,6.00553855,2415.7,2415.6,3.2078]
[1750745243798,6.00553855,2415.7,2415.6,4.03521]
[1750745244000,6.00553855,2415.7,2415.6,0.82741]
[1750745244212,11.00553855,2415.7,2415.3,3.2078]
[1750745244393,4.62413855,2415.6,2415.3,3.2078]
[1750745244799,1.3814,2415.7,2415.5,0.82742]
[1750745244998,0.6686,2415.8,2415.7,0.82738]
[1750745246203,2.30800281,2417.6,2416.4,3.2078]
[1750745246398,6.02323855,2418.0,2417.5,3.2078]
[1750745246597,8.58044394,2417.9,2417.5,3.2078]
[1750745246796,4.62413855,2417.7,2417.5,3.2078]
[1750745247000,1.00044394,2417.6,2417.5,3.2078]
[1750745247505,6.00044394,2417.6,2417.5,3.2078]
[1750745247906,6.00044394,2417.6,2417.5,4.03456]
[1750745248098,1.00044394,2417.6,2417.5,4.03456]
[1750745248300,0.95344813,2417.6,2417.5,4.03455]
[1750745249505,7.579,2417.9,2417.8,0.82666]
[1750745249705,8.53255306,2417.9,2417.8,4.03446]
[1750745250407,8.53255306,2417.9,2417.8,3.2078]
[1750745251311,8.9506,2417.9,2417.8,4.03446]
[1750745251512,7.579,2417.9,2417.8,4.03446]
[1750745252016,8.53217528,2417.9,2417.8,4.03446]
[1750745252203,8.53217528,2417.9,2417.8,3.2078]
[1750745252405,14.53291383,2417.9,2417.8,3.2078]
[1750745252608,13.57973855,2417.9,2417.8,3.2078]
[1750745253005,19.40636855,2417.9,2417.8,3.2078]
[1750745253302,0.82671,2417.7,2417.3,3.2078]
[1750745253509,4.62413855,2417.5,2417.3,3.2078]
[1750745253708,12.20113855,2417.5,2417.3,3.2078]
[1750745253908,0.95222847,2417.4,2417.3,3.2078]
[1750745254111,0.95222847,2417.4,2417.0,3.2078]
[1750745254317,4.62413855,2417.1,2416.7,4.03481]
[1750745254513,10.73293204,2417.0,2416.7,3.2078]
[1750745254705,0.95239204,2416.9,2416.7,3.2078]
[1750745255012,12.20113855,2417.7,2416.7,3.2078]
[1750745255315,3.2078,2417.9,2416.9,4.03477]
[1750745255316,4.62413855,2417.1,2416.9,4.03477]
[1750745255614,4.62413855,2417.1,2416.9,3.2078]
[1750745256008,7.577,2417.2,2417.1,0.8269]
[1750745256209,7.577,2417.2,2416.9,3.2078]
[1750745256402,4.62413855,2417.1,2416.9,3.2078]
[1750745256609,6.05513855,2417.1,2416.9,3.2078]
[1750745256805,4.62413855,2417.2,2416.9,3.2078]
[1750745257115,7.577,2417.1,2416.9,3.2078]
[1750745257510,9.83492,2417.1,2416.9,3.2078]
[1750745257815,9.008,2417.1,2416.9,3.2078]
[1750745258512,7.577,2417.1,2416.9,3.2078]
[1750745260108,0.82702,2416.8,2416.6,3.2078]
[1750745260313,0.82704,2416.7,2416.6,3.2078]
[1750745260514,7.577,2416.7,2416.6,3.2078]
[1750745261111,8.40404,2416.7,2416.6,3.2078]
[1750745262017,8.40404,2416.7,2416.3,3.2078]
[1750745262519,7.577,2416.7,2416.4,0.82714]
[1750745262813,0.82702,2416.8,2416.4,0.82714]
[1750745262814,6.11442855,2416.9,2416.5,0.82711]
[1750745263009,0.82705,2416.7,2416.4,1.36]
[1750745263209,0.82702,2416.8,2416.4,2.18713]
[1750745263409,7.578,2416.7,2416.4,2.18713]
[1750745263617,7.578,2416.7,2416.4,2.18712]
[1750745264115,7.578,2416.7,2416.4,2.18714]
[1750745264617,7.578,2416.7,2416.4,1.36]
[1750745264823,7.578,2416.7,2416.5,0.8271]
[1750745265120,7.578,2416.7,2416.4,2.18713]
[1750745265321,7.578,2416.7,2416.6,3.2078]
[1750745266726,7.578,2416.7,2416.6,4.599]
[1750745267519,7.578,2416.7,2416.6,5.42608]
[1750745267724,7.578,2416.8,2416.6,5.42608]
[1750745267921,6.64843855,2417.2,2416.6,4.599]
[1750745268122,34.477,2417.1,2416.9,3.2078]
[1750745268420,35.30393,2417.1,2416.9,3.2078]
[1750745268619,0.82694,2417.0,2416.6,5.42605]
[1750745269724,0.82694,2417.0,2416.6,4.599]
[1750745269918,0.82694,2417.0,2416.6,5.42605]
[1750745271228,0.82698,2416.9,2416.6,5.42605]
[1750745271424,0.82698,2416.9,2416.6,4.599]
[1750745271628,0.82704,2416.7,2416.6,3.2078]
[1750745271829,7.578,2416.7,2416.6,3.2078]
[1750745272029,8.40504,2416.7,2416.6,3.2078]
[1750745272724,7.578,2416.7,2416.6,3.2078]
[1750745273125,8.40504,2416.7,2416.6,3.2078]
[1750745273827,35.25404,2416.7,2416.6,3.2078]
[1750745274018,2.0677,2416.6,2415.7,4.03518]
[1750745274218,5.45142855,2416.0,2415.7,3.2078]
[1750745274433,34.442,2415.9,2415.7,4.6135]
[1750745275632,4.62413855,2416.0,2415.7,5.44087]
[1750745275933,0.82734,2415.9,2415.7,3.2078]
[1750745276635,0.82735,2415.8,2415.7,3.2078]
[1750745276836,39.04213855,2416.0,2415.7,4.03518]
[1750745277043,39.86941855,2416.0,2415.7,4.03518]
[1750745277335,39.86941855,2416.0,2415.7,3.2078]
[1750745277535,0.82733,2415.9,2415.7,3.2078]
[1750745277836,0.82732,2415.9,2415.7,3.2078]
[1750745278030,0.82735,2415.8,2415.7,3.2078]
[1750745278235,3.2078,2415.9,2415.4,3.8828]
[1750745278431,0.82744,2415.6,2415.4,3.8828]
[1750745278736,26.803,2415.6,2415.4,3.8828]
[1750745278940,26.804,2415.8,2415.5,1.4387]
[1750745279244,26.809,2415.8,2415.7,3.2078]
[1750745281146,26.803,2415.9,2415.7,4.03519]
[1750745281347,7.457,2416.0,2415.7,4.03519]
[1750745281348,35.06229,2416.0,2415.8,2.1247]
[1750745281647,0.82732,2415.9,2415.8,2.1247]
[1750745281845,0.82735,2415.8,2415.7,3.2078]
[1750745282646,0.82734,2415.9,2415.7,3.2078]
[1750745282853,34.235,2416.0,2415.7,3.2078]
[1750745283050,3.1601318,2416.3,2415.7,3.2078]
[1750745283258,27.60923,2416.2,2415.8,6.06034]
[1750745283448,0.82726,2416.1,2415.8,5.233]
[1750745283649,0.82725,2416.1,2415.8,5.233]
[1750745284043,0.82732,2415.9,2415.8,5.233]
[1750745284354,0.82732,2415.9,2415.8,3.2078]
[1750745284355,27.61432,2415.9,2415.8,3.2078]
[1750745284951,32.23845855,2415.9,2415.8,3.2078]
[1750745285449,31.41113855,2415.9,2415.8,3.2078]
[1750745285755,32.23845855,2415.9,2415.8,3.2078]
[1750745286051,31.41113855,2415.9,2415.8,3.2078]
[1750745286954,26.787,2415.9,2415.8,3.2078]
[1750745287459,26.787,2415.9,2415.8,4.03515]
[1750745287649,1.5179,2416.3,2415.8,3.2078]
[1750745287948,7.458,2416.0,2415.9,0.82732]
[1750745288149,1.5179,2416.3,2416.0,0.82727]
[1750745288351,34.193,2416.2,2416.1,2.23845]
[1750745288953,34.193,2416.2,2416.1,1.4112]
[1750745289355,34.193,2416.2,2416.1,4.619]
[1750745289750,47.669,2416.4,2416.1,3.2078]
[1750745290062,26.72,2417.0,2416.2,8.1518]
[1750745290253,26.72,2417.0,2416.7,4.03483]
[1750745291060,26.72,2417.0,2416.7,4.03481]
[1750745291260,8.28475,2417.6,2417.2,0.82686]
[1750745291461,50.82659311,2417.8,2417.1,3.2078]
[1750745291756,1.8166,2417.5,2417.4,4.03458]
[1750745293048,1.8166,2417.5,2417.4,9.03458]
[1750745293247,26.733,2418.2,2417.9,0.82662]
[1750745293459,5.67699311,2418.8,2417.8,3.2078]
[1750745293655,7.456,2418.7,2418.3,0.82648]